Workbook

Sheet Entgeltrechner
D2: Entgeltrechner
D4: Stand: 01.01.2020
E7: Entgeltrechner für Kunden mit Leistungsmessung und unterbrechbare Kunden (>1,5 Mio. kWh oder > 500 kW) inkl. Kapazitätszusagen (vorgelagerter Netzbetreiber ist die terranets bw GmbH)
F11: Arbeitsentgelt
A13: OTW | B13: 0.1987 | F13: Jahresmenge eingeben: | G13: 4000000 | H13: kWh/a
A15: OVW | B15: 0.3628 | F15: =+IF(B42=TRUE,"","Jahresmenge zu gering") -> 
A16: Halbwert | B16: 4700000
A17: E | B17: 0.80656015 | F17: Jahresmenge | G17: =IF($B$42=TRUE,G13,"") -> 4000000 | H17: =IF(G13<1500001,"","kWh") -> kWh
F18: Briefmarke Arbeit Ortstransportnetz | G18: =IF($B$42=TRUE,ROUND(B13,4),"") -> 0.1987 | H18: Ct/kWh
A19: Arbeitspreis | F19: Briefmarke Arbeit Ortsverteilnetz | G19: =IF($B$42=TRUE,ROUND(B15,4),"") -> 0.3628 | H19: Ct/kWh
A20: ct/kWh | B20: =ROUND(B13+B15*(1/(1+(G13/B16)^B17)),4) -> 0.3919 | F20: Wendepunkt Arbeit | G20: =IF($B$42=TRUE,ROUND(B16,0),"") -> 4700000 | H20: kWh
A21: gerundet mit 4 | B21: =B13+B15*(1/(1+(G13/B16)^B17)) -> 0.3918809669 | F21: Exponent Arbeit | G21: =IF($B$42=TRUE,ROUND(B17,4),"") -> 0.8066
A23: Arbeitsentgelt | B23: =B21*G13/100 -> 15675.23868 | F23: Individuelles Netzentgelt Arbeit | G23: =IF(G13="","",IF($B$42=TRUE,ROUND(B21,5),"")) -> 0.39188 | H23: Ct/kWh
B24: =IF(H17="","",B23) -> 15675.23868 | F24: Arbeitsentgelt | G24: =IF(G13="","",IF($B$42=TRUE,ROUND(B23,5),"")) -> 15675.23868 | H24: €/a
F27: Leistungsentgelt
A29: OTP | B29: 3.6 | F29: Vorhalteleistung eingeben: | G29: 2000 | H29: kW
A30: OVP | B30: 5.95
F31: =+IF(B42=TRUE,"","Vorhalteleistung zu gering") -> 
A32: HW | B32: 2600
A33: E | B33: 1.03279153 | F33: Vorhalteleistung: | G33: =IF(B42=TRUE,IF(G29=0,"",G29),"") -> 2000 | H33: kW
F34: Briefmarke Leistung Ortstransportnetz | G34: =IF($B$42=TRUE,ROUND(B29,2),"") -> 3.6 | H34: €/kW
A35: Leistungspreis | F35: Briefmarke Leistung Ortsverteilnetz | G35: =IF($B$42=TRUE,ROUND(B30,2),"") -> 5.95 | H35: €/kW
A36: €/kW | B36: =IF(G29="","",B29+B30/(1+((G29/B32)^B33))) -> 6.975616067 | F36: Wendepunkt Leistung | G36: =IF($B$42=TRUE,ROUND(B32,0),"") -> 2600 | H36: kW
F37: Exponent Leistung | G37: =IF($B$42=TRUE,ROUND(B33,4),"") -> 1.0328
A39: Leistungsentgelt | B39: =ROUND($G$29*B36,2) -> 13951.23 | F39: Individuelles Netzentgelt Leistung | G39: =IF(G29="","",IF($B$42=TRUE,ROUND(B36,5),"")) -> 6.97562 | H39: €/kW
F40: Leistungsentgelt | G40: =IF(G29="","",IF($B$42=TRUE,ROUND(B39,2),"")) -> 13951.23 | H40: €/a
A41: Prüfung
A42: RLM? | B42: =+OR(H19>=1500000,H39>=500) -> TRUE
F43: =IF(G21="","",IF(G40="","Summe der Entgelte","Summe der Entgelte")) -> Summe der Entgelte | G43: =IF(G24="","",IF(G40="",G24,G24+G40)) -> 29626.46868 | H43: =IF(F21="","",IF(F40="","€/a","€/a")) -> €/a
A44: =+(0.5018/(1+((4/3.1)^0.978780338))+0.1803) -> 0.4000636241
D54: Energieversorgung Filstal GmbH & Co. KG · Großeislinger Straße 30 · 73033 Göppingen Telefon: 07161 - 6101-0 · Internet: www.evf.de
